fUSD/lending_fUSD_20240518
["ID","MTS","AMOUNT","RATE_DAILY","PERIOD"]
[327350105,1716006633572,-152.46,0.00019945,15]
[327350106,1716006633582,-155.0,0.0002,2]
[327350107,1716006633592,-627.57712,0.0002,2]
[327350108,1716006633601,-1772.44606718,0.0002,2]
[327350109,1716006633611,-155.0,0.0002,2]
[327350110,1716006633621,-6236.08966478,0.0002,2]
[327350111,1716006633632,-5182.97271811,0.0002,2]
[327350112,1716006633642,-1262.30364489,0.0002,2]
[327350113,1716006633652,-861.79098037,0.0002,2]
[327350114,1716006633661,-155.0,0.0002,2]
[327350115,1716006633672,-309.76,0.00020581,2]
[327350116,1716006633683,-717.49719888,0.00021,2]
[327350117,1716006633692,-174.4,0.00021144,2]
[327350118,1716006633701,-150.02,0.00021209,2]
[327350119,1716006633711,-6767.13708574,0.000219,2]
[327350120,1716006633720,-477.82,0.00021918,2]
[327350121,1716006633730,-2000.0,0.00021918,2]
[327350122,1716006633740,-5520.28770876,0.00022,2]
[327350123,1716006633750,-164.29,0.00022016,2]
[327350124,1716006633759,-309.76,0.00022452,2]
[327350125,1716006633768,-1375.73110909,0.0002254,2]
[327350126,1716006633779,-522.2650496,0.0002254,2]
[327350127,1716006633788,-403.219229,0.00022917,2]
[327350128,1716006633797,-191.796927,0.00022917,2]
[327350129,1716006633806,-151.033621,0.00022917,2]
[327350130,1716006633816,-181.023342,0.00022917,2]
[327350131,1716006633829,-155.0,0.00023,2]
[327350132,1716006633840,-403.219229,0.00023203,2]
[327350133,1716006633849,-2003.50782915,0.000234,2]
[327350134,1716006633858,-257.87370425,0.00023428,2]
[327350135,1716006633869,-403.219229,0.0002349,2]
[327350136,1716006633879,-191.796927,0.0002349,2]
[327350137,1716006633889,-187.77027545,0.00023676,2]
[327350138,1716006633898,-403.219229,0.00023776,2]
[327350139,1716006633909,-432.75692337,0.00024,2]
[327350140,1716006633918,-403.219229,0.00024063,2]
[327350141,1716006633928,-191.796927,0.00024063,2]
[327350142,1716006633937,-151.033621,0.00024063,2]
[327350143,1716006633947,-181.023342,0.00024063,2]
[327350144,1716006633956,-164.29,0.0002428,2]
[327350145,1716006633965,-167.34,0.00024408,2]
[327350146,1716006633974,-9148.79926231,0.0002499,2]
[327350147,1716006633984,-575.12287039,0.00025,14]
[327350148,1716006633993,-155.0,0.00025,2]
[327350149,1716006634002,-926.12875824,0.00025,2]
[327350150,1716006634011,-224.1230564,0.00025,2]
[327350151,1716006634020,-155.0,0.00025,2]
[327350152,1716006634029,-321.99463947,0.00025,30]
[327350153,1716006634039,-174.4,0.00025373,120]
[327350154,1716006634048,-1375.73110909,0.00026267,2]
[327350155,1716006634058,-522.2650496,0.00026267,2]
[327350156,1716006634068,-187.77027545,0.00026288,2]
[327350157,1716006634077,-152.46,0.00026521,15]
[327350158,1716006634086,-164.29,0.00026544,2]
[327350159,1716006634096,-160.92067864,0.000269,2]
[327350160,1716006634105,-160.92067864,0.000269,2]
[327350161,1716006634114,-1742.60595667,0.00027,2]
[327350162,1716006634123,-155.0,0.00027,4]
[327350163,1716006634133,-150.0,0.00027397,2]
[327350164,1716006634142,-1808.01,0.00027397,10]
[327350165,1716006634152,-1506.67,0.00027397,10]
[327350166,1716006634161,-1255.56,0.00027397,10]
[327350167,1716006634170,-151.020529,0.00027696,2]
[327350168,1716006634180,-150.0,0.00028118,2]
[327350169,1716006634189,-150.02,0.00028445,2]
[327350170,1716006634198,-164.29,0.00028808,2]
[327350171,1716006634207,-150.0,0.00028839,2]
[327350172,1716006634216,-214.0,0.000289,2]
[327350173,1716006634226,-187.77027545,0.000289,2]
[327350174,1716006634235,-4646.16870337,0.00029,2]
[327350175,1716006634249,-353.83129663,0.00029,2]
[327350176,1716006634258,-517.72144727,0.00029,2]
[327350177,1716006634270,-485.80288671,0.00029,2]
[327350178,1716006634281,-5438.39379598,0.00029,2]
[327350179,1716006634293,-2420.67069498,0.00029,2]
[327350180,1716006634390,-372822.90291278,0.00029,2]
[327350190,1716006638082,-1046.3,0.0002899,10]
[327350191,1716006638091,-1726.98413778,0.00029,2]
[327350192,1716006638145,-3596.35,0.00029,2]
[327350193,1716006638265,-771.07115909,0.00029,2]
[327350194,1716006638277,-882.06164822,0.00029,2]
[327350195,1716006638327,-794.73235085,0.00029,2]
[327350196,1716006638338,-110543.30896634,0.00029,2]
[327350197,1716006638348,-1481.05847419,0.00029,2]
[327350198,1716006638357,-472.0,0.00029054,2]
[327350199,1716006638366,-151.020529,0.00029081,2]
[327350200,1716006638375,-472.0,0.00029353,2]
[327350201,1716006638384,-150.0,0.0002956,2]
[327350202,1716006638393,-472.0,0.00029653,2]
[327350204,1716006638402,-151.0,0.00029721,2]
[327350206,1716006638411,-423.459,0.00029798,2]
[327350208,1716006638420,-472.0,0.00029952,2]
[327350210,1716006638429,-1375.73110909,0.00029993,2]
[327350212,1716006638439,-522.2650496,0.00029993,2]
[327350214,1716006638448,-19384.48887425,0.0003,4]
[327350216,1716006638457,-5684.64320039,0.0003,2]
[327350218,1716006638466,-23803.93424964,0.0003,4]
[327350220,1716006638475,-39220.10365859,0.0003,30]
[327350222,1716006638484,-426.30565488,0.0003,4]
[327350238,1716006638603,-310.0,0.0003,3]
[327350240,1716006638613,-483.13349757,0.0003,2]
[327350242,1716006638623,-1392.12055122,0.0003,60]
[327350244,1716006638632,-7008.45629382,0.0003,4]
[327350246,1716006638641,-289.051813,0.00030148,26]
[327350248,1716006638650,-302.0,0.0003022,4]
[327350250,1716006638659,-472.0,0.00030252,2]
[327350252,1716006638668,-150.0,0.00030281,2]
[327350254,1716006638678,-314.051813,0.00030448,26]
[327350256,1716006638687,-472.0,0.00030551,2]
[327350258,1716006638697,-257.87370425,0.00030552,2]
[327350260,1716006638706,-604.0,0.00030728,7]
[327350262,1716006638715,-471.051813,0.00030748,26]
[327350264,1716006638724,-472.0,0.00030851,2]
[327350266,1716006638733,-150.0,0.00031002,2]
[327350268,1716006638742,-164.29,0.00031072,2]
[327350270,1716006638752,-314.051813,0.00031148,28]
[327350272,1716006638761,-471.051813,0.00031448,28]
[327350274,1716006638770,-1208.0,0.00031506,30]
[327350276,1716006638779,-150.0,0.00031723,2]
[327350278,1716006638788,-314.051813,0.00031748,28]
[327350279,1716006638797,-560.66,0.00031785,2]
[327350281,1716006638807,-314.051813,0.00031948,34]
[327350283,1716006638816,-333.25588851,0.00032,4]
[327350285,1716006638826,-471.051813,0.00032148,28]
[327350287,1716006638837,-150.0,0.00032444,2]
[327350289,1716006638846,-314.051813,0.00032448,30]
[327350291,1716006638855,-177.25,0.00032688,120]
[327350293,1716006638864,-471.051813,0.00032748,32]
[327350295,1716006638874,-150.0,0.00032877,13]
[327350297,1716006638883,-188.5,0.00032899,2]
[327350299,1716006638892,-188.5,0.00032899,2]
[327350301,1716006638901,-188.5,0.00032899,2]
[327350303,1716006638911,-362596.71631161,0.000329,30]
[327350305,1716006638921,-13174.48387019,0.000329,30]
[327350307,1716006638930,-500.0,0.000329,2]
[327350309,1716006638939,-500.0,0.000329,2]
[327350311,1716006638948,-500.0,0.000329,2]
[327350313,1716006638957,-500.0,0.000329,2]
[327350315,1716006638966,-500.0,0.000329,2]
[327350317,1716006638975,-500.0,0.000329,2]
[327350319,1716006638984,-314.051813,0.00032948,34]
[327350321,1716006638993,-152.46,0.00033096,15]
[327350323,1716006639003,-314.051813,0.00033148,30]
[327350325,1716006639012,-477.82,0.00033151,120]
[327350327,1716006639022,-150.0,0.00033165,2]
[327350329,1716006639031,-164.29,0.00033336,2]
[327350331,1716006639042,-471.051813,0.00033448,32]
[327350333,1716006639051,-160.92067864,0.00033715,2]
[327350335,1716006639061,-1375.73110909,0.0003372,2]
[327350337,1716006639071,-522.2650496,0.0003372,2]
[327350339,1716006639080,-314.051813,0.00033748,32]
[327350341,1716006639090,-150.0,0.00033886,2]
[327350343,1716006639100,-471.051813,0.00033948,34]
[327350345,1716006639109,-471.051813,0.00034148,32]
[327350347,1716006639119,-314.051813,0.00034448,32]
[327350349,1716006639128,-150.0,0.00034607,2]
[327350351,1716006639138,-314.051813,0.00034748,34]
[327350353,1716006639147,-2159.502,0.00034934,7]
[327350355,1716006639157,-29311.28890874,0.00035,4]
[327350357,1716006639166,-3344.6430411,0.00035,30]
[327350359,1716006639176,-314.051813,0.00035148,34]
[327350361,1716006639185,-150.0,0.00035328,2]
[327350363,1716006639195,-471.051813,0.00035448,36]
[327350365,1716006639204,-164.29,0.000356,2]
[327350367,1716006639214,-150.02,0.00035681,2]
[327350369,1716006639223,-314.051813,0.00035748,36]
[327350371,1716006639233,-560.66,0.00035758,2]
[327350373,1716006639243,-601.0,0.00035838,5]
[327350375,1716006639253,-900.0,0.00035922,10]
[327350377,1716006639263,-2900.0,0.00035922,10]
[327350379,1716006639273,-471.051813,0.00035948,38]
[327350381,1716006639283,-150.0,0.00036049,2]
[327350383,1716006639292,-314.051813,0.00036148,38]
[327350385,1716006639302,-471.051813,0.00036448,40]
[327350387,1716006639312,-900.0,0.0003647,10]
[327350389,1716006639321,-2900.0,0.0003647,10]
[327350391,1716006639330,-314.051813,0.00036748,40]
[327350393,1716006639340,-150.0,0.0003677,2]
[327350395,1716006639349,-471.051813,0.00036948,40]
[327350397,1716006639359,-900.0,0.00037018,10]
[327350399,1716006639369,-2900.0,0.00037018,10]
[327350401,1716006639379,-314.051813,0.00037148,38]
[327350403,1716006639388,-1375.73110909,0.00037447,2]
[327350405,1716006639398,-522.2650496,0.00037447,2]
[327350407,1716006639407,-471.051813,0.00037448,40]
[327350409,1716006639417,-150.0,0.00037491,2]
[327350411,1716006639427,-900.0,0.00037566,10]
[327350413,1716006639437,-2900.0,0.00037566,10]
[327350415,1716006639446,-500.0,0.00037566,10]
[327350417,1716006639456,-2300.0,0.00037566,10]
[327350420,1716006639466,-257.87370425,0.00037676,2]
[327350421,1716006639475,-2059.77144597,0.000377,4]
[327350424,1716006639485,-314.051813,0.00037748,40]
[327350425,1716006639496,-164.29,0.00037864,2]
[327350427,1716006639505,-2300.0,0.00038114,10]
[327350429,1716006639515,-471.051813,0.00038148,40]
[327350431,1716006639526,-150.0,0.00038212,2]
[327350433,1716006639536,-154.35,0.00038356,2]
[327350435,1716006639546,-200.66066223,0.000384,2]
[327350437,1716006639556,-314.051813,0.00038448,42]
[327350439,1716006639566,-171.26,0.00038575,2]
[327350442,1716006639576,-2300.0,0.00038662,10]
[327350444,1716006639586,-900.0,0.00038662,10]
[327350445,1716006639596,-2900.0,0.00038662,10]
[327350447,1716006639606,-500.0,0.00038662,10]
[327350449,1716006639615,-471.051813,0.00038748,42]
[327350451,1716006639625,-885.15310528,0.000389,30]
[327350453,1716006639635,-150.0,0.00038933,2]
[327350455,1716006639646,-500.0,0.00038936,10]
[327350457,1716006639657,-150000.0,0.00039,14]
[327350459,1716006639668,-314.051813,0.00039148,42]
[327350460,1716006639678,-2300.0,0.0003921,10]
[327350461,1716006639688,-471.051813,0.00039448,44]
[327350462,1716006639698,-158.96052223,0.00039654,2]
[327350463,1716006639708,-150.0,0.00039654,2]
[327350464,1716006639718,-152.46,0.00039671,15]
[327350465,1716006639728,-560.66,0.00039731,2]
[327350466,1716006639739,-314.051813,0.00039748,44]
[327350467,1716006639749,-900.0,0.00039758,10]
[327350468,1716006639758,-2900.0,0.00039758,10]
[327350469,1716006639768,-500.0,0.00039758,10]
[327350470,1716006639778,-1152.06555651,0.0003984,10]
[327350471,1716006639788,-790.35,0.0004,120]
[327350472,1716006639798,-4067.33047534,0.0004,4]
[327350474,1716006639807,-3579.53252172,0.0004,20]
[327350476,1716006639818,-838.76126357,0.0004,4]
[327350477,1716006639830,-435.42252769,0.0004,2]
[327350478,1716006639844,-155.0,0.0004,4]
[327350479,1716006639854,-49939.15352487,0.0004,4]
[327350480,1716006639864,-213.0,0.0004,4]
[327350481,1716006639876,-392.47074712,0.0004001,30]
[327350482,1716006639886,-500.0,0.00040032,10]
[327350483,1716006639896,-164.29,0.00040128,2]
[327350484,1716006639906,-471.051813,0.00040148,44]
[327350485,1716006639916,-2300.0,0.00040306,10]
[327350486,1716006639927,-150.0,0.00040375,2]
[327350487,1716006639937,-314.051813,0.00040448,46]
[327350488,1716006639948,-10652.4815,0.00040481,2]
[327350489,1716006639958,-3624.06022716,0.00040489,4]
[327350490,1716006639968,-132705.29521,0.00040581,7]
[327350491,1716006639978,-151.0,0.00040581,14]
[327350492,1716006639987,-151.0,0.00040581,2]
[327350493,1716006639997,-216.983149,0.00040581,14]
[327350494,1716006640006,-151.0,0.00040581,14]
[327350495,1716006640017,-151.0,0.00040581,14]
[327350496,1716006640028,-151.0,0.00040581,14]
[327350497,1716006640038,-151.0,0.00040581,14]
[327350498,1716006640048,-151.0,0.00040581,14]
[327350499,1716006640058,-151.0,0.00040581,14]
[327350500,1716006640068,-151.0,0.00040581,14]
[327350501,1716006640078,-151.0,0.00040581,14]
[327350502,1716006640088,-153.401548,0.00040581,14]
[327350503,1716006640099,-151.482256,0.00040581,14]
[327350504,1716006640109,-151.0,0.00040581,14]
[327350505,1716006640119,-151.0,0.00040581,14]
[327350506,1716006640129,-287.431077,0.00040581,14]
[327350507,1716006640139,-151.0,0.00040581,14]
[327350508,1716006640149,-151.0,0.00040581,14]
[327350509,1716006640159,-151.0,0.00040581,14]
[327350510,1716006640178,-151.0,0.00040581,14]
[327350511,1716006640195,-151.0,0.00040581,14]
[327350512,1716006640205,-151.0,0.00040581,14]
[327350513,1716006640215,-151.0,0.00040581,14]
[327350514,1716006640226,-151.0,0.00040581,14]
[327350515,1716006640235,-153.607316,0.00040581,14]
[327350516,1716006640246,-153.607316,0.00040581,14]
[327350517,1716006640257,-151.0,0.00040581,7]
[327350518,1716006640266,-151.0,0.00040581,14]
[327350519,1716006640276,-151.0,0.00040581,14]
[327350520,1716006640286,-151.0,0.00040581,14]
[327350521,1716006640296,-151.0,0.00040581,14]
[327350522,1716006640306,-471.051813,0.00040748,46]
[327350523,1716006640316,-169.40660434,0.00040754,14]
[327350524,1716006640326,-900.0,0.00040854,10]
[327350525,1716006640337,-2900.0,0.00040854,10]
[327350526,1716006640347,-500.0,0.00040854,10]
[327350527,1716006640358,-157.0,0.00041096,2]
[327350528,1716006640369,-2500.0,0.00041096,30]
[327350529,1716006640378,-150.0,0.00041096,2]
[327350530,1716006640388,-2000.0,0.000411,2]
[327350531,1716006640398,-200.0,0.00041126,20]
[327350532,1716006640409,-500.0,0.00041128,30]
[327350533,1716006640419,-314.051813,0.00041148,46]
[327350534,1716006640429,-1375.73110909,0.00041173,2]
[327350535,1716006640439,-522.2650496,0.00041173,2]
[327350536,1716006640449,-2300.0,0.00041402,30]
[327350537,1716006640459,-471.051813,0.00041448,48]
[327350538,1716006640469,-500.0,0.00041676,30]
[327350539,1716006640479,-314.051813,0.00041748,48]
[327350540,1716006640489,-2300.0,0.0004195,30]
[327350541,1716006640500,-900.0,0.0004195,30]
[327350542,1716006640510,-2900.0,0.0004195,30]
[327350543,1716006640521,-500.0,0.0004195,30]
[327350544,1716006640530,-1850.5,0.00042,30]
[327350545,1716006640540,-471.051813,0.00042148,48]
[327350546,1716006640551,-500.0,0.00042224,30]
[327350547,1716006640561,-158.96052221,0.00042277,7]
[327350548,1716006640571,-164.29,0.00042391,2]
[327350549,1716006640581,-2859.51921202,0.00042398,16]
[327350550,1716006640591,-314.051813,0.00042448,50]
[327350551,1716006640600,-379.19958869,0.00042494,30]
[327350552,1716006640610,-2300.0,0.00042498,30]
[327350553,1716006640619,-900.0,0.00042498,30]
[327350554,1716006640629,-2900.0,0.00042498,30]
[327350555,1716006640639,-500.0,0.00042498,30]
[327350556,1716006640649,-162.388376,0.000425,11]
[327350557,1716006640658,-2859.51921202,0.00042625,17]
[327350558,1716006640668,-300.35,0.0004263,2]
[327350559,1716006640677,-351.66,0.0004263,2]
[327350560,1716006640687,-301.58,0.0004263,2]
[327350561,1716006640697,-420.56,0.0004263,2]
[327350562,1716006640706,-150.0,0.0004263,2]
[327350563,1716006640716,-163.39,0.0004263,2]
[327350564,1716006640725,-351.66,0.0004263,2]
[327350565,1716006640734,-420.56,0.0004263,2]
[327350566,1716006640744,-150.0,0.0004263,2]
[327350567,1716006640754,-163.39,0.0004263,2]
[327350568,1716006640763,-351.66,0.0004263,2]
[327350569,1716006640772,-420.56,0.0004263,2]
[327350570,1716006640782,-163.39,0.0004263,2]
[327350571,1716006640791,-150.0,0.0004263,2]
[327350572,1716006640800,-351.66,0.0004263,2]
[327350573,1716006640809,-163.39,0.0004263,2]
[327350574,1716006640819,-420.56,0.0004263,2]
[327350575,1716006640828,-351.66,0.0004263,2]
[327350576,1716006640842,-420.56,0.0004263,2]
[327350577,1716006640851,-150.0,0.0004263,2]
[327350578,1716006640861,-163.39,0.0004263,2]
[327350579,1716006640870,-700.26,0.0004263,2]
[327350580,1716006640880,-420.56,0.0004263,2]
[327350581,1716006640889,-163.39,0.0004263,2]
[327350582,1716006640899,-420.56,0.0004263,2]
[327350583,1716006640908,-163.39,0.0004263,2]
[327350584,1716006640919,-420.56,0.0004263,2]
[327350585,1716006640929,-163.39,0.0004263,2]
[327350587,1716006640938,-163.39,0.0004263,2]
[327350589,1716006640948,-163.39,0.0004263,2]
[327350591,1716006640957,-1051.86,0.0004263,2]
[327350592,1716006640967,-8203.4437,0.00042637,10]
[327350594,1716006640976,-591.87489295,0.00042655,120]
[327350596,1716006640985,-2554.0,0.000427,92]
[327350598,1716006640995,-308.53620513,0.0004274,30]
[327350600,1716006641004,-471.051813,0.00042748,50]
[327350602,1716006641014,-163.39,0.00042767,2]
[327350604,1716006641023,-1738.56,0.00042767,2]
[327350606,1716006641032,-500.0,0.00042772,30]
[327350608,1716006641041,-1823.64,0.000428,35]
[327350610,1716006641051,-2859.51921202,0.00042853,17]
[327350612,1716006641060,-150.02,0.00042917,2]
[327350614,1716006641070,-150.0,0.00043,11]
[327350616,1716006641079,-2300.0,0.00043046,30]
[327350618,1716006641088,-900.0,0.00043046,30]
[327350620,1716006641097,-2900.0,0.00043046,30]
[327350622,1716006641106,-2859.51921202,0.0004308,17]
[327350624,1716006641116,-314.051813,0.00043148,50]
[327350626,1716006641125,-2859.51921202,0.00043308,18]
[327350628,1716006641134,-500.0,0.0004332,30]
[327350630,1716006641144,-30000.00000099,0.0004343,4]
[327350632,1716006641153,-471.051813,0.00043448,52]
[327350634,1716006641163,-150.0,0.000435,11]
[327350636,1716006641172,-2859.51921202,0.00043535,18]
[327350638,1716006641181,-2300.0,0.00043594,30]
[327350640,1716006641191,-900.0,0.00043594,30]
[327350641,1716006641201,-2900.0,0.00043594,30]
[327350643,1716006641210,-560.66,0.00043704,2]
[327350645,1716006641220,-150.0,0.00043714,2]
[327350647,1716006641229,-150.0,0.00043742,2]
[327350649,1716006641238,-314.051813,0.00043748,52]
[327350651,1716006641249,-2859.51921202,0.00043763,18]
[327350653,1716006641258,-200.0,0.00043836,25]
[327350665,1716006641372,-1000.0,0.00043836,50]
[327350667,1716006641381,-1000.0,0.00043836,50]
[327350668,1716006641390,-1000.0,0.00043836,50]
[327350669,1716006641399,-200.0,0.00043836,25]
[327350670,1716006641408,-500.0,0.00043868,30]
[327350671,1716006641417,-150.0,0.0004389,2]
[327350672,1716006641426,-1000.0,0.00043911,120]
[327350673,1716006641436,-13117.19191425,0.0004392,60]
[327350674,1716006641445,-177.25,0.00043921,120]
[327350675,1716006641455,-150.0,0.0004396,2]
[327350676,1716006641464,-2859.51921202,0.0004399,18]
[327350677,1716006641474,-1157.748186,0.00044,44]
[327350678,1716006641483,-150.0,0.00044,12]
[327350679,1716006641493,-1138.98303683,0.00044002,10]
[327350680,1716006641503,-200.0,0.00044008,120]
[327350681,1716006641512,-415.34,0.00044027,2]
[327350682,1716006641521,-415.34,0.00044027,2]
[327350683,1716006641531,-415.34,0.00044027,2]
[327350684,1716006641540,-415.34,0.00044027,2]
[327350685,1716006641549,-276.66,0.00044027,2]
[327350686,1716006641559,-150.0,0.00044136,2]
[327350687,1716006641568,-2300.0,0.00044142,30]
[327350688,1716006641577,-931.99535304,0.00044142,30]
[327350689,1716006641587,-2900.0,0.00044142,30]
[327350690,1716006641596,-314.051813,0.00044148,52]
[327350691,1716006641606,-155.97,0.00044164,2]
[327350692,1716006641616,-1065.32,0.00044164,2]
[327350693,1716006641625,-300.37,0.00044164,2]
[327350694,1716006641634,-163.31,0.00044164,2]
[327350695,1716006641643,-150.0,0.00044164,2]
[327350696,1716006641652,-150.0,0.00044164,2]
[327350697,1716006641662,-150.0,0.00044181,2]
[327350698,1716006641672,-150.0,0.00044192,2]
[327350699,1716006641681,-257.3,0.00044192,2]
[327350700,1716006641691,-426.99,0.00044192,2]
[327350701,1716006641700,-150.0,0.00044201,2]
[327350702,1716006641709,-200.0,0.00044202,120]
[327350703,1716006641718,-2859.51921202,0.00044218,19]
[327350704,1716006641728,-150.0,0.00044286,2]
[327350705,1716006641737,-150.0,0.00044337,2]
[327350706,1716006641747,-1000.0,0.00044364,120]
[327350707,1716006641756,-477.82,0.00044384,120]
[327350708,1716006641765,-500.0,0.00044416,30]
[327350709,1716006641774,-150.72,0.00044438,2]
[327350710,1716006641784,-2859.51921202,0.00044445,19]
[327350711,1716006641793,-314.051813,0.00044448,54]
[327350712,1716006641802,-150.0,0.0004445,2]
[327350713,1716006641811,-418.98879,0.0004445,23]
[327350714,1716006641820,-179.02812795,0.00044451,120]
[327350715,1716006641830,-200.0,0.00044486,120]
[327350716,1716006641846,-150.0,0.000445,12]
[327350717,1716006641855,-150.0,0.0004454,2]
[327350718,1716006641866,-500.0,0.00044541,30]
[327350719,1716006641878,-150.0,0.00044558,2]
[327350720,1716006641889,-150.0,0.00044574,2]
[327350721,1716006641898,-150.0,0.00044579,2]
[327350722,1716006641908,-151.0,0.00044581,2]
[327350723,1716006641919,-150.0,0.00044624,2]
[327350724,1716006641928,-164.29,0.00044655,2]
[327350725,1716006641938,-150.0,0.00044669,2]
[327350726,1716006641947,-2859.51921202,0.00044673,19]
[327350727,1716006641957,-2300.0,0.0004469,30]
[327350728,1716006641966,-1555.72405942,0.0004469,30]
[327350729,1716006641975,-150.0,0.00044722,2]
[327350730,1716006641985,-150.0,0.0004473,2]
[327350731,1716006641994,-150.0,0.00044737,2]
[327350732,1716006642003,-12025.0,0.0004474,30]
[327350733,1716006642014,-314.051813,0.00044748,54]
[327350734,1716006642024,-151.0,0.000448,14]
[327350735,1716006642033,-151.0,0.000448,2]
[327350736,1716006642043,-151.0,0.000448,14]
[327350737,1716006642052,-179.424586,0.000448,14]
[327350738,1716006642062,-151.0,0.000448,14]
[327350739,1716006642071,-151.0,0.000448,14]
[327350740,1716006642080,-255.957753,0.000448,14]
[327350741,1716006642089,-279.09661,0.000448,14]
[327350742,1716006642099,-151.0,0.000448,14]
[327350743,1716006642108,-257.87370425,0.000448,2]
[327350744,1716006642118,-151.0,0.000448,14]
[327350745,1716006642127,-151.0,0.000448,14]
[327350746,1716006642137,-151.0,0.000448,14]
[327350747,1716006642146,-7489.01767515,0.000448,2]
[327350748,1716006642155,-190.11760394,0.000448,2]
[327350749,1716006642164,-192.95714798,0.000448,2]
[327350750,1716006642174,-514.58667572,0.000448,2]
[327350751,1716006642183,-3167.29983824,0.000448,2]
[327350752,1716006642193,-200.0,0.00044802,120]
[327350753,1716006642202,-150.0,0.00044805,2]
[327350754,1716006642211,-1000.0,0.00044818,120]
[327350755,1716006642221,-150.0,0.00044829,2]
[327350756,1716006642230,-7489.01767515,0.0004485,2]
[327350757,1716006642240,-190.11760393,0.0004485,2]
[327350758,1716006642250,-514.58667572,0.0004485,2]
[327350759,1716006642259,-150.0,0.00044851,2]
[327350760,1716006642268,-150.0,0.00044858,2]
[327350761,1716006642277,-237.597027,0.00044892,14]
[327350762,1716006642287,-151.0,0.00044892,14]
[327350763,1716006642296,-166.478055,0.00044892,14]
[327350764,1716006642306,-151.0,0.00044892,14]
[327350765,1716006642315,-151.0,0.00044892,14]
[327350766,1716006642324,-151.0,0.00044892,14]
[327350767,1716006642334,-160.92067864,0.00044892,2]
[327350768,1716006642343,-1063.54710283,0.00044898,4]
[327350769,1716006642353,-2811.96204764,0.00044898,4]
[327350770,1716006642362,-491.60572532,0.00044899,2]
[327350771,1716006642371,-150.0,0.00044899,30]
[327350772,1716006642380,-151.73532247,0.00044899,30]
[327350773,1716006642390,-155.0,0.000449,7]
[327350774,1716006642399,-500.0,0.000449,5]
[327350775,1716006642408,-683.32335146,0.000449,15]
[327350776,1716006642417,-57514.7488571,0.000449,2]
[327350777,1716006642427,-24087.59534171,0.000449,5]
[327350778,1716006642436,-30211.3190525,0.000449,4]
[327350779,1716006642445,-1594.8592032,0.000449,4]
[327350780,1716006642455,-2759.56450673,0.000449,10]
[327350781,1716006642466,-4132.08500885,0.000449,4]
[327350782,1716006642475,-451.25839972,0.000449,4]
[327350783,1716006642484,-215.79747019,0.000449,30]
[327350784,1716006642493,-645.33591283,0.000449,30]
[327350785,1716006642504,-1601.67686434,0.000449,4]
[327350786,1716006642514,-295.81148259,0.000449,2]
[327350787,1716006642523,-7569.01144224,0.000449,4]
[327350788,1716006642532,-288.53186192,0.000449,120]
[327350789,1716006642542,-2859.51921202,0.000449,20]
[327350790,1716006642552,-158.96052221,0.000449,17]
[327350791,1716006642561,-186.12094094,0.000449,120]
[327350792,1716006642571,-151.0,0.000449,14]
[327350793,1716006642580,-151.0,0.000449,14]
[327350794,1716006642590,-151.0,0.000449,14]
[327350795,1716006642599,-151.0,0.000449,14]